[Event "Asian Amateur-ch Open 2022"]
[Site "Muscat"]
[Date "2022.10.03"]
[Round "7.12"]
[White "Bagheri, Majid"]
[Black "Al Darwashi, Anas"]
[Result "1-0"]
[ECO "B38"]
[WhiteElo "1870"]
[BlackElo "1530"]
[Annotator "NA RC COMBH"]
[PlyCount "91"]
[EventDate "2022.09.29"]
[EventType "swiss"]
[EventCountry "OMN"]
[SourceTitle "playchess.com"]
[Source "ChessBase"]
[SourceQuality "1"]
[TimeControl "5400+30"]

1. e4 {[%emt 0:00:04]} c5 {[%emt 0:00:02]} 2. Nf3 {[%emt 0:00:08]} g6 {[%emt 0:00:02]} 3. d4 {[%emt 0:00:12]} cxd4 {[%emt 0:00:10]} 4. Nxd4 {[%emt 0:00:52]} Bg7 {[%emt 0:00:01]} 5. c4 {[%emt 0:00:19]} Qb6 {[%emt 0:01:31]} 6. Nb3 {[%emt 0:00:59]} Nc6 {[%emt 0:02:01]} 7. Nc3 {[%emt 0:00:46]} Nf6 {[%emt 0:00:45]} 8. Be3 {[%emt 0:00:29]} Qc7 {[%emt 0:00:37]} 9. Be2 {[%emt 0:02:54]} d6 {[%emt 0:01:40]} 10. O-O {[%emt 0:00:25]} O-O {[%emt 0:02:14]} 11. Rc1 {[%emt 0:01:19]} Be6 {[%emt 1:26:57]} 12. f3 {[%emt 0:03:24]} Qd7 {[%emt 0:00:00]} 13. Nd4 {[%emt 0:03:37]} Nxd4 {[%emt 0:00:00]} 14. Bxd4 {[%emt 0:01:09]} Qc7 {[%emt 0:00:00]} 15. b3 {[%emt 0:01:41]} Nd7 {[%emt 0:00:00]} 16. Be3 {[%emt 0:02:53]} Qa5 {[%emt 0:00:00]} 17. Qd2 {[%emt 0:00:33]} Rfc8 {[%emt 0:00:00]} 18. Rfd1 {[%emt 0:12:09]} a6 {[%emt 0:00:00]} 19. Nb1 {[%emt 0:12:06]} Qxd2 {[%emt 0:00:00]} 20. Nxd2 {[%emt 0:00:05]} a5 {[%emt 0:00:00]} 21. f4 {[%emt 0:03:13]} Nc5 {[%emt 0:00:00]} 22. g4 {[%emt 0:04:51]} f5 {[%emt 0:00:00]} 23. exf5 {[%emt 0:00:54]} gxf5 {[%emt 0:00:00]} 24. g5 {[%emt 0:06:57]} a4 {[%emt 0:00:00]} 25. Bxc5 {[%emt 0:01:53]} dxc5 {[%emt 0:00:00]} 26. Bf3 {[%emt 0:01:28]} Bd4+ {[%emt 0:00:00]} 27. Kg2 {[%emt 0:00:36]} Rc7 {[%emt 0:00:00]} 28. Rc2 {[%emt 0:01:06]} Rd8 {[%emt 0:00:00]} 29. Re1 {[%emt 0:00:15]} Bf7 {[%emt 0:00:00]} 30. Nf1 {[%emt 0:00:56]} axb3 {[%emt 0:00:00]} 31. axb3 {[%emt 0:00:09]} b5 {[%emt 0:00:00]} 32. Ng3 {[%emt 0:00:57]} e6 {[%emt 0:00:00]} 33. cxb5 {[%emt 0:02:43]} Ra7 {[%emt 0:00:00]} 34. b6 {[%emt 0:01:34]} Ra3 {[%emt 0:00:00]} 35. Rb1 {[%emt 0:01:08]} Be8 {[%emt 0:00:00]} 36. b4 {[%emt 0:01:43]} Ba4 {[%emt 0:00:00]} 37. Rd2 {[%emt 0:00:22]} c4 {[%emt 0:00:00]} 38. b7 {[%emt 0:01:55]} Rd3 {[%emt 0:00:00]} 39. Ra2 {[%emt 0:01:03]} Rxf3 {[%emt 0:00:00]} 40. Rxa4 {[%emt 0:00:35]} Rf2+ {[%emt 0:00:00]} 41. Kh3 {[%emt 0:00:02]} Be5 {[%emt 0:00:00]} 42. fxe5 {[%emt 0:00:21]} Kf7 {[%emt 0:00:00]} 43. Ra8 {[%emt 0:00:19]} Rd4 {[%emt 0:00:00]} 44. Rf8+ {[%emt 0:02:39]} Kg6 {[%emt 0:00:00]} 45. Rg8+ {[%emt 0:00:15]} Kf7 {[%emt 0:00:00]} 46. g6+ {[%emt 0:00:48]} 1-0

[Event "Asian Amateur-ch Open 2022"]
[Site "Muscat"]
[Date "2022.10.03"]
[Round "7.13"]
[White "Khayat, Emad"]
[Black "Al Ansi Amin"]
[Result "1-0"]
[ECO "D11"]
[WhiteElo "1597"]
[BlackElo "1806"]
[Annotator "NA RC COMBH"]
[PlyCount "139"]
[EventDate "2022.09.29"]
[EventType "swiss"]
[EventCountry "OMN"]
[SourceTitle "playchess.com"]
[Source "ChessBase"]
[SourceQuality "1"]
[TimeControl "5400+30"]

1. d4 {[%emt 0:00:03]} Nf6 {[%emt 0:00:14]} 2. Nf3 {[%emt 0:00:09]} d5 {[%emt 0:00:10]} 3. g3 {[%emt 0:00:07]} Bf5 {[%emt 0:02:45]} 4. Bg2 {[%emt 0:00:12]} e6 {[%emt 0:00:07]} 5. O-O {[%emt 0:00:07]} Bd6 {[%emt 0:01:45]} 6. c4 {[%emt 0:01:33]} c6 {[%emt 0:00:57]} 7. Nc3 {[%emt 0:01:58]} h6 {[%emt 0:00:47]} 8. Qb3 {[%emt 0:00:31]} b6 {[%emt 0:10:28]} 9. Bf4 {[%emt 0:00:44]} Bxf4 {[%emt 0:05:09]} 10. gxf4 {[%emt 0:00:11]} Ne4 {[%emt 0:02:55]} 11. Rac1 {[%emt 0:00:55]} g5 {[%emt 0:09:58]} 12. cxd5 {[%emt 0:08:13]} exd5 {[%emt 0:16:21]} 13. Nxe4 {[%emt 0:05:43]} Bxe4 {[%emt 0:00:27]} 14. fxg5 {[%emt 0:02:16]} hxg5 {[%emt 0:01:16]} 15. Ne5 {[%emt 0:01:23]} Bxg2 {[%emt 0:00:41]} 16. Kxg2 {[%emt 0:00:09]} Qd6 {[%emt 0:00:07]} 17. Qg3 {[%emt 0:05:34]} Rg8 {[%emt 0:05:46]} 18. Nxc6 {[%emt 0:01:15]} Kd7 {[%emt 0:16:07]} 19. Qg4+ {[%emt 0:04:54]} Qe6 {[%emt 0:04:09]} 20. Ne5+ {[%emt 0:00:41]} Kd8 {[%emt 0:00:56]} 21. Qxe6 {[%emt 0:05:01]} fxe6 {[%emt 0:00:01]} 22. Rc3 {[%emt 0:00:48]} Na6 {[%emt 0:05:10]} 23. Rfc1 {[%emt 0:00:44]} Rg7 {[%emt 0:04:28]} 24. Rc6 {[%emt 0:02:29]} Ke7 {[%emt 0:00:40]} 25. a3 {[%emt 0:00:42]} Kf6 {[%emt 0:01:09]} 26. b4 {[%emt 0:00:18]} Rh8 {[%emt 0:02:45]} 27. b5 {[%emt 0:01:08]} Rgh7 {[%emt 0:03:21]} 28. Ng4+ {[%emt 0:02:56]} Kf5 {[%emt 0:00:06]} 29. f3 {[%emt 0:01:41]} Nb8 {[%emt 0:00:25]} 30. Rc7 {[%emt 0:00:50]} a5 {[%emt 0:04:08]} 31. Rxh7 {[%emt 0:04:24]} Rxh7 {[%emt 0:00:01]} 32. Ne5 {[%emt 0:01:28]} Nd7 {[%emt 0:00:12]} 33. Rc7 {[%emt 0:00:28]} Nf8 {[%emt 0:00:11]} 34. Rxh7 {[%emt 0:01:19]} Nxh7 {[%emt 0:00:02]} 35. Nd7 {[%emt 0:00:16]} Nf6 {[%emt 0:01:56]} 36. Nxf6 {[%emt 0:00:46]} Kxf6 {[%emt 0:00:02]} 37. e4 {[%emt 0:00:40]} e5 {[%emt 0:00:39]} 38. dxe5+ {[%emt 0:05:23]} Kxe5 {[%emt 0:00:05]} 39. exd5 {[%emt 0:00:42]} Kxd5 {[%emt 0:00:01]} 40. Kg3 {[%emt 0:04:13]} Kc5 {[%emt 0:00:41]} 41. Kg4 {[%emt 0:00:49]} Kxb5 {[%emt 0:00:02]} 42. Kxg5 {[%emt 0:00:12]} Kc4 {[%emt 0:01:01]} 43. h4 {[%emt 0:00:15]} b5 {[%emt 0:00:02]} 44. h5 {[%emt 0:00:06]} b4 {[%emt 0:00:01]} 45. axb4 {[%emt 0:01:57]} axb4 {[%emt 0:04:46]} 46. h6 {[%emt 0:00:12]} b3 {[%emt 0:00:00]} 47. h7 {[%emt 0:00:08]} b2 {[%emt 0:00:00]} 48. h8=Q {[%emt 0:00:24]} b1=Q {[%emt 0:00:00]} 49. Qc8+ {[%emt 0:02:05]} Kd4 {[%emt 0:00:00]} 50. Qd7+ {[%emt 0:00:14]} Ke3 {[%emt 0:00:00]} 51. f4 {[%emt 0:01:00]} Qg1+ {[%emt 0:00:00]} 52. Qg4 {[%emt 0:00:27]} Qa1 {[%emt 0:00:00]} 53. Qe6+ {[%emt 0:00:22]} Kf3 {[%emt 0:00:00]} 54. f5 {[%emt 0:02:25]} Qg1+ {[%emt 0:00:04]} 55. Kh6 {[%emt 0:00:37]} Qh2+ {[%emt 0:01:09]} 56. Kg6 {[%emt 0:00:36]} Qg3+ {[%emt 0:01:55]} 57. Kf7 {[%emt 0:06:02]} Qc7+ {[%emt 0:00:25]} 58. Qe7 {[%emt 0:00:38]} Qc4+ {[%emt 0:00:13]} 59. Kg6 {[%emt 0:00:48]} Qg4+ {[%emt 0:00:20]} 60. Qg5 {[%emt 0:00:11]} Qe4 {[%emt 0:01:20]} 61. Kh6 $11 {[%emt 0:01:44]} (61. Qh5+ $18 Ke3 62. Kh6 Qc6+ 63. Kg7 Qb7+ 64. Kg6) 61... Qb4 {[%emt 0:01:40]} 62. f6 {[%emt 0:00:55]} Qd6 {[%emt 0:00:34]} 63. Kg7 {[%emt 0:01:26]} Qd4 {[%emt 0:00:25]} 64. Qf5+ {[%emt 0:04:53]} Kg3 {[%emt 0:00:24]} 65. Kh7 {[%emt 0:00:20]} Qh4+ {[%emt 0:00:37]} 66. Kg6 {[%emt 0:00:55]} Qc4 {[%emt 0:00:48]} 67. f7 {[%emt 0:01:19]} Qc6+ {[%emt 0:00:16]} 68. Kg7 {[%emt 0:01:07]} Qc3+ {[%emt 0:00:48]} 69. Kh7 {[%emt 0:01:34]} Qc7 {[%emt 0:00:11]} 70. Kh6 {[%emt 0:02:38]} 1-0

[Event "Asian Amateur-ch Open 2022"]
[Site "Muscat"]
[Date "2022.10.03"]
[Round "7.14"]
[White "Nadeem Aziz"]
[Black "Vijay Chauhan"]
[Result "0-1"]
[ECO "D11"]
[WhiteElo "1797"]
[BlackElo "1526"]
[Annotator "NA RC COMBH"]
[PlyCount "80"]
[EventDate "2022.09.29"]
[EventType "swiss"]
[EventCountry "OMN"]
[SourceTitle "playchess.com"]
[Source "ChessBase"]
[SourceQuality "1"]
[TimeControl "5400+30"]

1. d4 {[%emt 0:00:02]} d5 {[%emt 0:00:06]} 2. Nf3 {[%emt 0:00:04]} Nf6 {[%emt 0:00:05]} 3. c4 {[%emt 0:00:06]} c6 {[%emt 0:00:02]} 4. Qb3 {[%emt 0:00:05]} e6 {[%emt 0:03:40]} 5. Bg5 {[%emt 0:00:13]} Nbd7 {[%emt 0:00:08]} 6. e3 {[%emt 0:00:29]} Be7 {[%emt 0:00:15]} 7. Nbd2 {[%emt 0:00:20]} Qa5 {[%emt 0:02:58]} 8. Bd3 {[%emt 0:04:39]} Bb4 {[%emt 0:03:45]} 9. Bxf6 {[%emt 0:01:09]} Nxf6 {[%emt 0:00:37]} 10. a3 {[%emt 0:02:45]} Be7 {[%emt 0:01:02]} 11. O-O {[%emt 0:00:37]} O-O {[%emt 0:00:22]} 12. Qc2 {[%emt 0:00:20]} h6 {[%emt 0:01:10]} 13. b4 {[%emt 0:00:23]} Qc7 {[%emt 0:04:29]} 14. c5 {[%emt 0:00:30]} Nd7 {[%emt 0:02:47]} 15. e4 {[%emt 0:07:02]} dxe4 {[%emt 0:08:19]} 16. Nxe4 {[%emt 0:01:29]} Nf6 {[%emt 0:02:16]} 17. Bc4 {[%emt 0:13:56]} Rd8 {[%emt 0:02:58]} 18. Rad1 {[%emt 0:00:15]} Bd7 {[%emt 0:02:38]} 19. Ba2 {[%emt 0:03:11]} a5 {[%emt 0:03:47]} 20. Bb1 {[%emt 0:00:18]} g6 {[%emt 0:00:02]} 21. h4 {[%emt 0:02:46]} h5 {[%emt 0:04:31]} 22. Neg5 {[%emt 0:03:26]} Be8 {[%emt 0:01:46]} 23. Ne5 {[%emt 0:00:58]} Ng4 {[%emt 0:01:42]} 24. Nxg4 {[%emt 0:05:52]} Bxg5 {[%emt 0:02:37]} 25. hxg5 {[%emt 0:00:13]} hxg4 {[%emt 0:00:01]} 26. Qe4 {[%emt 0:00:34]} axb4 {[%emt 0:00:34]} 27. axb4 {[%emt 0:00:02]} Ra4 {[%emt 0:06:58]} 28. Rd3 {[%emt 0:04:50]} Rxb4 {[%emt 0:02:05]} 29. Rfd1 {[%emt 0:01:01]} Rd5 {[%emt 0:08:11]} 30. Qxg4 {[%emt 0:00:45]} Qd8 {[%emt 0:01:03]} 31. Ba2 {[%emt 0:05:20]} Rxg5 {[%emt 0:02:30]} 32. Qe2 {[%emt 0:04:26]} Rh5 {[%emt 0:00:42]} 33. g3 {[%emt 0:04:15]} Qf6 {[%emt 0:00:42]} 34. Qf3 {[%emt 0:02:17]} Rf5 {[%emt 0:01:50]} 35. Qe2 {[%emt 0:01:05]} Qh8 {[%emt 0:00:39]} 36. g4 {[%emt 0:01:35]} Rf4 {[%emt 0:02:03]} 37. f3 {[%emt 0:11:25]} Rfxd4 {[%emt 0:01:56]} 38. R1d2 {[%emt 0:03:52]} Rxd3 {[%emt 0:00:45]} 39. Qxd3 {[%emt 0:00:33]} Qe5 {[%emt 0:01:36]} 40. Qa3 {[%emt 0:07:56]} Qe1+ {[%emt 0:26:53]} 0-1

[Event "Asian Amateur-ch Open 2022"]
[Site "Muscat"]
[Date "2022.10.03"]
[Round "7.15"]
[White "Reyes, Danilo G."]
[Black "Al Abdali, Zeyad Saleh"]
[Result "1-0"]
[ECO "A04"]
[WhiteElo "1584"]
[BlackElo "1780"]
[Annotator "NA RC COMBH"]
[PlyCount "184"]
[EventDate "2022.09.29"]
[EventType "swiss"]
[EventCountry "OMN"]
[SourceTitle "playchess.com"]
[Source "ChessBase"]
[SourceQuality "1"]
[TimeControl "5400+30"]

1. Nf3 {[%emt 0:00:05]} c5 {[%emt 0:08:48]} 2. g3 {[%emt 0:00:08]} Nc6 {[%emt 0:01:57]} 3. Bg2 {[%emt 0:00:05]} g6 {[%emt 0:02:05]} 4. O-O {[%emt 0:00:08]} Bg7 {[%emt 0:00:11]} 5. e4 {[%emt 0:00:18]} e6 {[%emt 0:00:39]} 6. d3 {[%emt 0:00:20]} Nge7 {[%emt 0:00:50]} 7. c3 {[%emt 0:00:11]} O-O {[%emt 0:01:01]} 8. Re1 {[%emt 0:00:29]} d6 {[%emt 0:00:30]} 9. a4 {[%emt 0:01:01]} Rb8 {[%emt 0:02:45]} 10. Na3 {[%emt 0:02:06]} a6 {[%emt 0:02:29]} 11. Bd2 {[%emt 0:07:07]} b5 {[%emt 0:03:10]} 12. axb5 {[%emt 0:00:54]} axb5 {[%emt 0:00:18]} 13. Qc1 {[%emt 0:01:53]} Re8 {[%emt 0:03:45]} 14. Bh6 {[%emt 0:06:33]} Bh8 {[%emt 0:07:53]} 15. h4 {[%emt 0:00:43]} b4 {[%emt 0:01:14]} 16. Nc4 {[%emt 0:00:25]} bxc3 {[%emt 0:01:59]} 17. bxc3 {[%emt 0:00:12]} Rb3 {[%emt 0:10:46]} 18. Ra3 {[%emt 0:03:21]} Rxa3 {[%emt 0:00:37]} 19. Qxa3 {[%emt 0:00:02]} d5 {[%emt 0:03:03]} 20. exd5 {[%emt 0:02:51]} exd5 {[%emt 0:01:14]} 21. Ncd2 {[%emt 0:03:45]} Qa5 {[%emt 0:06:47]} 22. Qxa5 {[%emt 0:02:38]} Nxa5 {[%emt 0:00:02]} 23. Bg5 {[%emt 0:08:05]} Be6 {[%emt 0:05:54]} 24. d4 {[%emt 0:04:31]} c4 {[%emt 0:06:39]} 25. Bxe7 {[%emt 0:03:34]} Rxe7 {[%emt 0:00:25]} 26. Ng5 {[%emt 0:00:31]} Bf6 {[%emt 0:07:21]} 27. Rb1 {[%emt 0:18:18]} Rd7 {[%emt 0:09:23]} 28. Rb5 {[%emt 0:04:40]} Nc6 {[%emt 0:07:22]} 29. Nf1 {[%emt 0:00:55]} Bxd4 {[%emt 0:01:12]} 30. cxd4 {[%emt 0:00:54]} Nxd4 {[%emt 0:00:04]} 31. Rb8+ {[%emt 0:01:21]} Kg7 {[%emt 0:00:10]} 32. Rc8 {[%emt 0:03:49]} Ne2+ {[%emt 0:00:28]} 33. Kh2 {[%emt 0:01:37]} c3 {[%emt 0:00:31]} 34. Bf3 {[%emt 0:03:17]} Rd6 {[%emt 0:01:21]} 35. Rc7 {[%emt 0:00:11]} Nd4 {[%emt 0:01:35]} 36. Nxe6+ {[%emt 0:02:25]} Nxe6 {[%emt 0:00:51]} 37. Rxc3 {[%emt 0:00:39]} d4 {[%emt 0:00:07]} 38. Rd3 {[%emt 0:00:26]} Nc5 {[%emt 0:00:27]} 39. Rd1 {[%emt 0:00:17]} Kf6 {[%emt 0:00:43]} 40. g4 {[%emt 0:00:38]} Ke5 {[%emt 0:00:16]} 41. Kg3 {[%emt 0:00:31]} Ne4+ {[%emt 0:01:38]} 42. Bxe4 {[%emt 0:01:33]} Kxe4 {[%emt 0:00:01]} 43. f3+ {[%emt 0:00:09]} Ke5 {[%emt 0:00:10]} 44. Nd2 {[%emt 0:00:46]} Kd5 {[%emt 0:00:21]} 45. g5 {[%emt 0:00:40]} f5 {[%emt 0:00:34]} 46. Kf4 {[%emt 0:01:44]} Rb6 {[%emt 0:00:47]} 47. Rb1 {[%emt 0:00:21]} Ra6 {[%emt 0:01:50]} 48. Rb8 {[%emt 0:03:34]} Ra3 {[%emt 0:01:10]} 49. Rd8+ {[%emt 0:00:20]} Kc5 {[%emt 0:00:07]} 50. Ke5 {[%emt 0:00:47]} Re3+ {[%emt 0:00:32]} 51. Kf6 {[%emt 0:00:28]} Rd3 {[%emt 0:00:04]} 52. Rc8+ {[%emt 0:00:46]} Kb4 {[%emt 0:00:31]} 53. Rc4+ {[%emt 0:08:38]} Kb5 {[%emt 0:00:40]} 54. Rc2 {[%emt 0:00:15]} Re3 {[%emt 0:00:50]} 55. Kg7 {[%emt 0:01:49]} Re7+ {[%emt 0:00:04]} 56. Kf6 {[%emt 0:00:16]} Re2 {[%emt 0:00:32]} 57. Rb2+ {[%emt 0:00:11]} Kc6 {[%emt 0:00:44]} 58. Nc4 {[%emt 0:01:21]} d3 {[%emt 0:00:55]} 59. Ne5+ {[%emt 0:00:23]} Kd5 {[%emt 0:01:00]} 60. Nxd3 {[%emt 0:00:03]} Re3 {[%emt 0:00:03]} 61. Ne5 {[%emt 0:01:12]} Kd4 {[%emt 0:00:34]} 62. Rb4+ {[%emt 0:00:39]} Kc5 {[%emt 0:00:21]} 63. Rf4 {[%emt 0:00:13]} Kd5 {[%emt 0:00:17]} 64. Nxg6 {[%emt 0:00:17]} Re6+ {[%emt 0:00:29]} 65. Kf7 {[%emt 0:00:33]} hxg6 {[%emt 0:00:25]} 66. Rd4+ {[%emt 0:00:44]} Ke5 {[%emt 0:00:02]} 67. f4+ {[%emt 0:00:09]} Kxd4 {[%emt 0:00:23]} 68. Kxe6 {[%emt 0:00:02]} Ke4 {[%emt 0:00:11]} 69. Kf6 {[%emt 0:00:04]} Kxf4 {[%emt 0:00:07]} 70. Kxg6 {[%emt 0:00:06]} Ke4 {[%emt 0:00:47]} 71. h5 {[%emt 0:01:05]} f4 {[%emt 0:00:04]} 72. h6 {[%emt 0:00:04]} f3 {[%emt 0:00:07]} 73. h7 {[%emt 0:00:26]} f2 {[%emt 0:00:04]} 74. h8=Q {[%emt 0:00:07]} f1=Q {[%emt 0:00:09]} 75. Qf6 {[%emt 0:00:26]} Qh3 {[%emt 0:00:09]} 76. Qe7+ {[%emt 0:02:43]} Kd5 {[%emt 0:00:10]} 77. Kg7 {[%emt 0:00:20]} Qh4 {[%emt 0:01:35]} 78. Qf7+ {[%emt 0:00:17]} Kd6 {[%emt 0:00:51]} 79. g6 {[%emt 0:00:05]} Qh5 {[%emt 0:00:34]} 80. Qf6+ {[%emt 0:00:19]} Kd7 {[%emt 0:00:13]} 81. Qf7+ {[%emt 0:00:19]} Kd6 {[%emt 0:00:03]} 82. Kg8 {[%emt 0:00:04]} Qg5 {[%emt 0:00:56]} 83. g7 {[%emt 0:01:15]} Qh6 {[%emt 0:00:14]} 84. Kf8 {[%emt 0:00:21]} Kc6 {[%emt 0:00:12]} 85. Qc4+ {[%emt 0:01:04]} Kd7 {[%emt 0:00:32]} 86. Qd5+ {[%emt 0:00:04]} Kc7 {[%emt 0:00:24]} 87. Qe5+ {[%emt 0:00:10]} Kc8 {[%emt 0:00:34]} 88. Kf7 {[%emt 0:00:16]} Qh7 {[%emt 0:00:19]} 89. Qg5 {[%emt 0:00:46]} Kd7 {[%emt 0:00:43]} 90. Kf8 {[%emt 0:00:04]} Qe4 {[%emt 0:00:18]} 91. g8=Q {[%emt 0:00:29]} Qe8+ {[%emt 0:00:27]} 92. Kg7 {[%emt 0:00:04]} Qxg8+ {[%emt 0:04:51]} 1-0

[Event "Asian Amateur-ch Open 2022"]
[Site "Muscat"]
[Date "2022.10.03"]
[Round "7.16"]
[White "Sharma Pankaj"]
[Black "Shaurya Dinesh Sawlani"]
[Result "1-0"]
[ECO "A25"]
[WhiteElo "1764"]
[BlackElo "1448"]
[Annotator "NA RC COMBH"]
[PlyCount "65"]
[EventDate "2022.09.29"]
[EventType "swiss"]
[EventCountry "OMN"]
[SourceTitle "playchess.com"]
[Source "ChessBase"]
[SourceQuality "1"]
[TimeControl "5400+30"]

1. c4 {[%emt 0:00:01]} e5 {[%emt 0:00:09]} 2. g3 {[%emt 0:00:09]} Nf6 {[%emt 0:00:30]} 3. Nc3 {[%emt 0:00:20]} Nc6 {[%emt 0:00:14]} 4. Bg2 {[%emt 0:00:05]} Bb4 {[%emt 0:00:34]} 5. e4 {[%emt 0:01:56]} d6 {[%emt 0:02:40]} 6. Nge2 {[%emt 0:06:06]} Bg4 {[%emt 0:02:53]} 7. h3 {[%emt 0:01:42]} Be6 {[%emt 0:01:30]} 8. Nd5 {[%emt 0:03:46]} Bc5 {[%emt 0:04:47]} 9. O-O {[%emt 0:05:32]} a5 {[%emt 0:07:35]} 10. d3 {[%emt 0:01:24]} h6 {[%emt 0:12:25]} 11. Kh2 {[%emt 0:03:02]} h5 {[%emt 0:23:35]} 12. Be3 {[%emt 0:21:35]} Nd4 {[%emt 0:15:36]} 13. Nxd4 {[%emt 0:03:27]} exd4 {[%emt 0:01:08]} 14. Bd2 {[%emt 0:00:42]} Nxd5 {[%emt 0:08:16]} 15. cxd5 {[%emt 0:01:20]} Bd7 {[%emt 0:00:17]} 16. f4 {[%emt 0:01:30]} Bb5 {[%emt 0:02:50]} 17. Qb3 {[%emt 0:03:29]} c6 {[%emt 0:02:33]} 18. a4 {[%emt 0:01:48]} Ba6 {[%emt 0:00:29]} 19. e5 {[%emt 0:00:14]} Rc8 {[%emt 0:04:50]} 20. Rae1 {[%emt 0:03:22]} O-O {[%emt 0:01:48]} 21. e6 {[%emt 0:01:31]} Qb6 {[%emt 0:01:10]} 22. Qc2 {[%emt 0:04:30]} Bb4 {[%emt 0:01:17]} 23. Bxb4 {[%emt 0:00:55]} axb4 {[%emt 0:00:32]} 24. Qe2 {[%emt 0:01:16]} h4 {[%emt 0:01:31]} 25. Be4 {[%emt 0:02:17]} f5 {[%emt 0:01:06]} 26. e7 {[%emt 0:00:28]} hxg3+ {[%emt 0:01:05]} 27. Kxg3 {[%emt 0:00:23]} fxe4 {[%emt 0:00:34]} 28. exf8=Q+ {[%emt 0:00:13]} Rxf8 {[%emt 0:00:06]} 29. Qxe4 {[%emt 0:00:29]} c5 {[%emt 0:01:17]} 30. b3 {[%emt 0:01:31]} Qd8 {[%emt 0:00:55]} 31. Qg6 {[%emt 0:07:01]} Qf6 {[%emt 0:01:48]} 32. Qxf6 {[%emt 0:24:26]} Rxf6 {[%emt 0:00:30]} 33. Rf3 {[%emt 0:00:30]} 1-0

[Event "Asian Amateur-ch Open 2022"]
[Site "Muscat"]
[Date "2022.10.03"]
[Round "7.17"]
[White "Shelke Omkar"]
[Black "Jaradat, Othman"]
[Result "1-0"]
[ECO "D05"]
[WhiteElo "1460"]
[BlackElo "1751"]
[Annotator "NA RC COMBH"]
[PlyCount "68"]
[EventDate "2022.09.29"]
[EventType "swiss"]
[EventCountry "OMN"]
[SourceTitle "playchess.com"]
[Source "ChessBase"]
[SourceQuality "1"]
[TimeControl "5400+30"]

1. d4 {[%emt 0:00:02]} e6 {[%emt 0:00:11]} 2. Nf3 {[%emt 0:00:54]} d5 {[%emt 0:00:09]} 3. e3 {[%emt 0:00:03]} Nf6 {[%emt 0:00:46]} 4. Bd3 {[%emt 0:00:05]} c5 {[%emt 0:00:37]} 5. b3 {[%emt 0:00:24]} cxd4 {[%emt 0:01:19]} 6. exd4 {[%emt 0:00:02]} Nc6 {[%emt 0:01:24]} 7. Bb2 {[%emt 0:01:26]} Bd6 {[%emt 0:02:15]} 8. Nbd2 {[%emt 0:00:35]} O-O {[%emt 0:01:57]} 9. a3 {[%emt 0:00:54]} e5 {[%emt 0:04:09]} 10. Nxe5 {[%emt 0:04:36]} Re8 {[%emt 0:06:43]} 11. O-O {[%emt 0:11:17]} Nxe5 {[%emt 0:02:01]} 12. dxe5 {[%emt 0:00:02]} Bxe5 {[%emt 0:00:21]} 13. Bxe5 {[%emt 0:00:06]} Rxe5 {[%emt 0:00:04]} 14. h3 {[%emt 0:00:27]} b6 {[%emt 0:04:47]} 15. Nf3 {[%emt 0:01:13]} Re8 {[%emt 0:02:04]} 16. Nd4 {[%emt 0:04:22]} Ne4 {[%emt 0:04:30]} 17. Qh5 {[%emt 0:06:35]} g6 {[%emt 0:18:08]} 18. Qh6 {[%emt 0:02:51]} Nc5 {[%emt 0:06:27]} 19. Nf3 {[%emt 0:05:27]} Qf6 {[%emt 0:01:15]} 20. Bb5 {[%emt 0:06:49]} Re7 {[%emt 0:03:05]} 21. Ng5 {[%emt 0:02:51]} Qg7 {[%emt 0:00:57]} 22. Qxg7+ {[%emt 0:05:08]} Kxg7 {[%emt 0:00:04]} 23. Bc6 {[%emt 0:01:56]} Bb7 {[%emt 0:04:52]} 24. Bxb7 {[%emt 0:01:37]} Rxb7 {[%emt 0:00:47]} 25. Rad1 {[%emt 0:01:17]} Rd7 {[%emt 0:01:45]} 26. Rd2 {[%emt 0:02:01]} Kf6 {[%emt 0:06:05]} 27. Nxh7+ {[%emt 0:05:16]} Kf5 {[%emt 0:01:39]} 28. g4+ {[%emt 0:00:18]} Ke6 {[%emt 0:08:33]} 29. Re1+ {[%emt 0:00:36]} Kd6 {[%emt 0:06:08]} 30. Nf6 {[%emt 0:00:12]} Rdd8 {[%emt 0:00:12]} 31. Nxd5 {[%emt 0:02:07]} Kc6 {[%emt 0:00:24]} 32. Nb4+ {[%emt 0:00:20]} Kc7 {[%emt 0:00:48]} 33. Re7+ {[%emt 0:00:31]} Rd7 {[%emt 0:00:01]} 34. Rdxd7+ {[%emt 0:00:54]} Nxd7 {[%emt 0:00:02]} 1-0

[Event "Asian Amateur-ch Open 2022"]
[Site "Muscat"]
[Date "2022.10.03"]
[Round "7.18"]
[White "Atharv Bansal"]
[Black "Krishanu Sai"]
[Result "1-0"]
[ECO "C54"]
[WhiteElo "1164"]
[BlackElo "1748"]
[Annotator "NA RC COMBH"]
[PlyCount "89"]
[EventDate "2022.09.29"]
[EventType "swiss"]
[EventCountry "OMN"]
[SourceTitle "playchess.com"]
[Source "ChessBase"]
[SourceQuality "1"]
[TimeControl "5400+30"]

1. e4 {[%emt 0:00:09]} e5 {[%emt 0:00:03]} 2. Nf3 {[%emt 0:00:22]} Nc6 {[%emt 0:00:06]} 3. Bc4 {[%emt 0:00:11]} Bc5 {[%emt 0:00:08]} 4. c3 {[%emt 0:00:15]} Nf6 {[%emt 0:00:10]} 5. d4 {[%emt 0:05:19]} exd4 {[%emt 0:00:47]} 6. e5 {[%emt 0:00:17]} d5 {[%emt 0:05:23]} 7. Bb5 {[%emt 0:01:40]} Ne4 {[%emt 0:01:19]} 8. cxd4 {[%emt 0:04:03]} Bb4+ {[%emt 0:03:05]} 9. Bd2 {[%emt 0:15:27]} Be7 {[%emt 0:03:40]} 10. Nc3 {[%emt 0:03:36]} Nxc3 {[%emt 0:04:52]} 11. bxc3 {[%emt 0:00:37]} Bf5 {[%emt 0:03:51]} 12. O-O {[%emt 0:06:21]} O-O {[%emt 0:01:27]} 13. Bf4 {[%emt 0:01:32]} Qd7 {[%emt 0:05:55]} 14. Re1 {[%emt 0:03:42]} Qe6 {[%emt 0:04:53]} 15. Bg5 {[%emt 0:08:24]} Bxg5 {[%emt 0:05:40]} 16. Nxg5 {[%emt 0:00:08]} Qg6 {[%emt 0:00:10]} 17. Qd2 {[%emt 0:06:01]} Nd8 {[%emt 0:02:17]} 18. Nf3 {[%emt 0:04:34]} Qh5 {[%emt 0:03:09]} 19. Qg5 {[%emt 0:18:36]} Qxg5 {[%emt 0:04:05]} 20. Nxg5 {[%emt 0:00:02]} h6 {[%emt 0:01:19]} 21. Nf3 {[%emt 0:00:09]} Ne6 {[%emt 0:00:30]} 22. Rad1 {[%emt 0:03:05]} Rfd8 {[%emt 0:12:16]} 23. Nh4 {[%emt 0:01:30]} Bh7 {[%emt 0:02:05]} 24. Bd3 {[%emt 0:00:55]} Bxd3 {[%emt 0:02:48]} 25. Rxd3 {[%emt 0:00:01]} c5 {[%emt 0:01:27]} 26. Nf5 {[%emt 0:00:35]} cxd4 {[%emt 0:04:03]} 27. cxd4 {[%emt 0:00:12]} Kf8 {[%emt 0:02:36]} 28. Nd6 {[%emt 0:00:21]} Rd7 {[%emt 0:01:04]} 29. Rc1 {[%emt 0:00:10]} f6 {[%emt 0:03:27]} 30. g3 {[%emt 0:00:41]} fxe5 {[%emt 0:03:26]} 31. dxe5 {[%emt 0:00:11]} d4 {[%emt 0:00:08]} 32. f4 {[%emt 0:00:28]} g6 {[%emt 0:00:36]} 33. Rf1 {[%emt 0:02:23]} Kg8 {[%emt 0:07:32]} 34. g4 {[%emt 0:00:19]} g5 {[%emt 0:01:09]} 35. f5 {[%emt 0:03:43]} Nf4 {[%emt 0:00:15]} 36. Rxf4 {[%emt 0:00:29]} gxf4 {[%emt 0:00:09]} 37. Rxd4 {[%emt 0:00:03]} Re7 {[%emt 0:01:37]} 38. e6 {[%emt 0:00:38]} Rd8 {[%emt 0:00:18]} 39. Kg2 {[%emt 0:00:42]} Kh7 {[%emt 0:06:54]} 40. Kf3 {[%emt 0:00:11]} Kg7 {[%emt 0:02:45]} 41. Kxf4 {[%emt 0:00:22]} b6 {[%emt 0:01:06]} 42. Ke5 {[%emt 0:00:23]} Rf8 {[%emt 0:00:25]} 43. f6+ {[%emt 0:00:36]} Rxf6 {[%emt 0:00:12]} 44. Nf5+ {[%emt 0:00:04]} Rxf5+ {[%emt 0:00:26]} 45. gxf5 {[%emt 0:00:06]} 1-0